bitfinex-derivatives/quotes_BTCF0:USTF0_20241015
["timestamp","ask_amount","ask_price","bid_price","bid_amount"]
[1728962154614,0.3668,65726.0,65725.0,0.198493]
[1728962156120,0.32872138,65726.0,65725.0,0.31448049]
[1728962156721,0.32872138,65726.0,65725.0,0.34257635]
[1728962156915,0.32872138,65726.0,65725.0,0.22257635]
[1728962157626,0.32872138,65726.0,65725.0,0.34257635]
[1728962158628,0.006,65726.0,65725.0,0.34257635]
[1728962160022,0.006,65726.0,65725.0,0.30258705]
[1728962160623,0.006,65726.0,65725.0,0.34257561]
[1728962160826,0.006,65726.0,65725.0,0.34257556]
[1728962163226,0.006,65726.0,65725.0,0.41855639]
[1728962164324,0.0106,65729.0,65725.0,1.37106265]
[1728962164517,0.0106,65732.0,65731.0,0.076086]
[1728962164719,0.3643,65737.0,65731.0,0.076086]
[1728962164720,0.0106,65737.0,65736.0,0.07608]
[1728962164937,0.3714,65742.0,65741.0,0.076075]
[1728962165121,0.3608,65742.0,65741.0,0.13681024]
[1728962165427,0.0106,65747.0,65746.0,0.076069]
[1728962165622,0.0035,65750.0,65749.0,0.076065]
[1728962165623,0.12,65750.0,65749.0,0.076065]
[1728962165825,0.12,65750.0,65749.0,0.076465]
[1728962166421,0.12,65750.0,65749.0,0.12197626]
[1728962166728,0.12,65750.0,65749.0,0.076465]
[1728962168127,0.12,65750.0,65749.0,0.12294967]
[1728962168325,0.12,65750.0,65749.0,0.10430815]
[1728962168734,0.12,65750.0,65749.0,0.10330815]
[1728962168926,0.12,65750.0,65749.0,0.15079282]
[1728962169120,0.12,65753.0,65751.0,0.076062]
[1728962169332,0.12,65753.0,65752.0,0.0004]
[1728962170221,0.196061,65753.0,65752.0,0.0004]
[1728962171125,0.23332082,65753.0,65752.0,0.0014]
[1728962171828,0.23332082,65753.0,65752.0,0.0024]
[1728962175236,0.41575232,65753.0,65752.0,0.0024]
[1728962176431,0.2800238,65753.0,65752.0,0.0024]
[1728962177637,0.43083327,65753.0,65752.0,0.0024]
[1728962178333,0.2800238,65753.0,65752.0,0.0024]
[1728962179141,0.196061,65753.0,65752.0,0.0024]
[1728962186153,0.28003316,65753.0,65752.0,0.0024]
[1728962186356,0.33461114,65753.0,65752.0,0.0024]
[1728962186958,0.28003316,65753.0,65752.0,0.0024]
[1728962189059,0.11332512,65753.0,65752.0,0.0024]
[1728962189355,0.11332512,65753.0,65752.0,0.078462]
[1728962189856,0.03726412,65753.0,65752.0,0.078462]
[1728962190854,0.0839675,65754.0,65752.0,0.078462]
[1728962191058,0.0839675,65753.0,65752.0,0.078462]
[1728962191357,0.15114013,65753.0,65752.0,0.078462]
[1728962191660,0.0839675,65753.0,65752.0,0.078462]
[1728962192043,0.15124316,65753.0,65752.0,0.078462]
[1728962192254,0.23521066,65753.0,65752.0,0.078462]
[1728962192450,0.0839675,65753.0,65752.0,0.078462]
[1728962192750,0.2039675,65753.0,65752.0,0.078462]
[1728962193454,0.2800285,65753.0,65752.0,0.078462]
[1728962193752,0.2800252,65753.0,65752.0,0.078462]
[1728962194253,0.196061,65753.0,65752.0,0.078462]
[1728962195158,0.196061,65753.0,65752.0,0.0024]
[1728962197960,0.316061,65753.0,65749.0,0.0004]
[1728962198258,0.556864,65750.0,65749.0,0.0004]
[1728962198662,0.59412935,65750.0,65749.0,0.0004]
[1728962198860,0.59412897,65750.0,65749.0,0.0004]
[1728962199165,0.556864,65750.0,65749.0,0.0004]
[1728962199360,0.676864,65750.0,65749.0,0.0004]
[1728962199563,0.676864,65750.0,65749.0,0.0014]
[1728962199763,0.556864,65750.0,65749.0,0.0024]
[1728962200059,0.616864,65750.0,65749.0,0.0014]
[1728962200264,0.617864,65750.0,65749.0,0.0024]
[1728962201159,0.70183722,65750.0,65749.0,0.0014]
[1728962201363,0.70183722,65750.0,65749.0,0.0024]
[1728962202558,0.70083722,65750.0,65749.0,0.0014]
[1728962202769,0.70183722,65750.0,65749.0,0.0024]
[1728962205270,0.85324027,65750.0,65749.0,0.0024]
[1728962205460,0.70183722,65750.0,65749.0,0.0024]
[1728962205856,1.08782006,65750.0,65749.0,0.001]
[1728962206065,0.076073,65742.0,65741.0,0.0004]
[1728962206260,0.76827317,65742.0,65741.0,0.0004]
[1728962206469,0.83709534,65742.0,65741.0,0.0004]
[1728962206668,0.75542911,65742.0,65741.0,0.0004]
[1728962208272,0.92293576,65742.0,65741.0,0.0014]
[1728962208577,0.86835287,65742.0,65741.0,0.0014]
[1728962208767,0.70184622,65742.0,65741.0,0.0014]
[1728962208958,0.70184622,65742.0,65741.0,0.0024]
[1728962209268,0.617873,65742.0,65741.0,0.0024]
[1728962209769,0.618873,65742.0,65741.0,0.0024]
[1728962210367,0.616873,65742.0,65741.0,0.0014]
[1728962210564,0.618873,65742.0,65741.0,0.0024]
[1728962212372,0.650273,65742.0,65741.0,0.0024]
[1728962216173,2.150273,65742.0,65741.0,0.0024]
[1728962216370,2.28884754,65742.0,65741.0,0.0024]
[1728962217269,2.23425995,65742.0,65741.0,0.0024]
[1728962217866,2.23425981,65742.0,65741.0,0.0024]
[1728962218969,2.20285981,65742.0,65741.0,0.0024]
[1728962219772,0.70285981,65742.0,65741.0,0.0024]
[1728962219968,0.83890248,65742.0,65741.0,0.0024]
[1728962220376,0.70285981,65742.0,65741.0,0.0024]
[1728962220779,0.83890562,65742.0,65741.0,0.0024]
[1728962221077,0.70285981,65742.0,65741.0,0.0024]
[1728962221277,0.70285535,65742.0,65741.0,0.0024]
[1728962221670,0.57743994,65742.0,65741.0,0.0024]
[1728962221972,0.50136694,65742.0,65741.0,0.198475]
[1728962222176,0.66766849,65742.0,65741.0,0.198475]
[1728962223181,0.44678235,65742.0,65741.0,0.198475]
[1728962223479,0.3608,65742.0,65741.0,0.197475]
[1728962223677,0.3618,65742.0,65741.0,0.198475]
[1728962223988,0.3618,65742.0,65741.0,0.078475]
[1728962224868,0.3618,65742.0,65741.0,0.077475]
[1728962225069,0.3618,65742.0,65741.0,0.078475]
[1728962225271,0.3618,65742.0,65741.0,0.111075]
[1728962226176,0.437873,65742.0,65741.0,0.111075]
[1728962226683,0.437873,65742.0,65741.0,0.035]
[1728962226873,0.437873,65742.0,65741.0,0.0024]
[1728962229475,0.437873,65742.0,65741.0,0.0014]
[1728962229675,0.437873,65742.0,65741.0,0.0024]
[1728962230069,0.436873,65742.0,65741.0,0.0014]
[1728962230271,0.437873,65742.0,65741.0,0.0024]
[1728962238378,0.5764352,65742.0,65741.0,0.0024]
[1728962239786,0.5764352,65742.0,65741.0,0.078475]
[1728962240686,0.57643334,65742.0,65741.0,0.078475]
[1728962246379,0.437873,65742.0,65741.0,0.078475]
[1728962247187,0.437873,65742.0,65741.0,0.198475]
[1728962254481,0.437873,65742.0,65741.0,0.0024]
[1728962254688,0.798673,65742.0,65741.0,0.0024]
[1728962257993,0.077073,65742.0,65741.0,0.0024]
[1728962258197,0.798673,65742.0,65741.0,0.0024]
[1728962261494,0.88265873,65742.0,65741.0,0.0024]
[1728962261799,0.91555873,65742.0,65741.0,0.0024]
[1728962264392,0.076079,65737.0,65728.0,0.0075]
[1728962264596,0.4808,65732.0,65731.0,0.0004]
[1728962264790,0.71415514,65732.0,65728.0,0.0004]
[1728962264989,0.196089,65729.0,65728.0,0.0004]
[1728962265185,0.39431623,65729.0,65728.0,0.0004]
[1728962265385,0.43158637,65729.0,65728.0,0.0004]
[1728962265591,0.28007722,65729.0,65728.0,0.0004]
[1728962265883,0.43158637,65729.0,65728.0,0.0004]
[1728962266092,0.28007722,65729.0,65728.0,0.0004]
[1728962267514,0.28207722,65729.0,65728.0,0.0004]
[1728962268201,0.41818168,65729.0,65728.0,0.0004]
[1728962268501,0.16000714,65729.0,65728.0,0.11639737]
[1728962268992,0.16000714,65729.0,65728.0,0.11639741]
[1728962269394,0.16000714,65729.0,65728.0,0.19238245]
[1728962269587,0.28000714,65729.0,65728.0,0.07638504]
[1728962269800,0.28000714,65729.0,65728.0,0.0004]
[1728962269994,0.16000714,65729.0,65728.0,0.0004]
[1728962270309,0.28000714,65729.0,65728.0,0.0004]
[1728962270800,0.16000714,65729.0,65728.0,0.0004]
[1728962270998,0.28000714,65729.0,65728.0,0.0004]
[1728962271600,0.16000714,65729.0,65728.0,0.06116384]
[1728962271998,0.28000714,65729.0,65728.0,0.06116384]
[1728962272901,0.16000714,65729.0,65728.0,0.06116384]
[1728962274196,0.16000714,65729.0,65728.0,0.0004]
[1728962274797,0.16000714,65729.0,65728.0,0.06114069]
[1728962275401,0.16000714,65729.0,65728.0,0.0004]
[1728962276500,0.19728264,65729.0,65728.0,0.0004]
[1728962277895,0.16000714,65729.0,65728.0,0.0004]
[1728962280426,0.28000714,65729.0,65728.0,0.0004]
[1728962280609,0.16000714,65729.0,65728.0,0.0004]
[1728962281104,0.16000714,65729.0,65702.0,0.076119]
[1728962281105,0.81844,65729.0,65702.0,0.076119]
[1728962281306,0.81844,65729.0,65700.0,0.0051]
[1728962281307,0.076109,65711.0,65710.0,0.0071]
[1728962281507,0.076115,65707.0,65703.0,0.076118]
[1728962281706,0.196115,65707.0,65705.0,0.076116]
[1728962282205,0.12,65710.0,65701.0,0.0272851]
[1728962282505,0.076112,65709.0,65707.0,0.076114]
[1728962283112,0.076112,65709.0,65705.0,0.12]
[1728962283113,0.12,65710.0,65709.0,0.076112]
[1728962283415,0.121,65710.0,65709.0,0.076112]
[1728962283612,0.121,65710.0,65709.0,0.076512]
[1728962283999,0.12,65710.0,65709.0,0.12204769]
[1728962284203,0.12,65710.0,65709.0,0.076512]
[1728962284601,0.12,65710.0,65709.0,0.077512]
[1728962284810,0.12,65710.0,65709.0,0.12304356]
[1728962285007,0.12,65710.0,65709.0,0.077512]
[1728962285210,0.3608,65711.0,65710.0,0.076111]
[1728962285411,0.3608,65711.0,65710.0,0.24204256]
[1728962285811,0.3608,65711.0,65710.0,0.196511]
[1728962286318,0.3628,65711.0,65710.0,0.196511]
[1728962286513,0.3628,65711.0,65710.0,0.24203897]
[1728962286714,0.002,65711.0,65710.0,0.24203897]
[1728962286903,0.002,65711.0,65710.0,0.196511]
[1728962287106,0.002,65711.0,65710.0,0.12203293]
[1728962287304,0.002,65711.0,65710.0,0.076511]
[1728962288321,0.002,65711.0,65710.0,0.12203293]
[1728962288717,0.002,65711.0,65710.0,0.076511]
[1728962289111,0.002,65711.0,65710.0,0.12203293]
[1728962289311,0.002,65711.0,65710.0,0.076511]
[1728962289712,0.002,65711.0,65710.0,0.0004]
[1728962289917,0.078109,65711.0,65710.0,0.0004]
[1728962290416,0.076111,65710.0,65704.0,0.02785117]
[1728962290611,0.122,65711.0,65695.0,0.0071]
[1728962290612,0.076121,65701.0,65696.0,0.06073497]
[1728962290814,0.12,65701.0,65700.0,0.077122]
[1728962291207,0.36172,65705.0,65700.0,0.02837116]
[1728962291421,0.3608,65705.0,65704.0,0.076517]
[1728962291613,0.12,65706.0,65705.0,0.076116]
[1728962291814,0.0071,65710.0,65705.0,0.076116]
[1728962291815,0.18,65708.0,65705.0,0.0004]
[1728962292115,1.53106,65712.0,65710.0,0.076111]
[1728962292116,0.21106,65712.0,65710.0,0.076111]
[1728962292323,0.2101,65712.0,65711.0,0.0004]
[1728962293424,0.2101,65712.0,65711.0,0.076509]
[1728962293720,0.2171,65712.0,65711.0,0.077509]
[1728962295112,0.2221,65712.0,65711.0,0.078509]
[1728962295618,0.298208,65712.0,65711.0,0.078509]
[1728962298125,0.33549199,65712.0,65711.0,0.078509]
[1728962298521,0.33549199,65712.0,65711.0,0.0024]
[1728962298734,0.659008,65712.0,65711.0,0.0024]
[1728962306625,0.69629393,65712.0,65711.0,0.0024]
[1728962310335,0.33549393,65712.0,65711.0,0.0024]
[1728962310738,1.05709393,65712.0,65711.0,0.0024]
[1728962311632,1.23993293,65712.0,65711.0,0.0024]
[1728962312230,1.10382523,65712.0,65711.0,0.0024]
[1728962312425,1.23992969,65712.0,65711.0,0.0024]
[1728962313625,1.019808,65712.0,65711.0,0.0024]
[1728962313936,0.959808,65712.0,65711.0,0.0024]
[1728962328640,0.99709539,65712.0,65711.0,0.0024]
[1728962329845,2.49709539,65712.0,65711.0,0.0024]
[1728962336345,2.49709411,65712.0,65711.0,0.0024]
[1728962336754,2.459808,65712.0,65711.0,0.0024]
[1728962338559,2.49709402,65712.0,65711.0,0.0024]
[1728962338743,2.459808,65712.0,65711.0,0.0024]
[1728962338947,2.49709399,65712.0,65711.0,0.0024]
[1728962340753,2.459808,65712.0,65711.0,0.0024]
[1728962343266,2.309708,65712.0,65711.0,0.0024]
[1728962344167,2.309708,65712.0,65711.0,0.078509]
[1728962344355,0.809708,65712.0,65711.0,0.078509]
[1728962346149,0.929708,65712.0,65711.0,0.078509]
[1728962349358,0.929708,65712.0,65711.0,0.0024]
[1728962354160,1.01372392,65712.0,65711.0,0.0024]
[1728962355761,0.89372392,65712.0,65711.0,0.0024]
[1728962357365,1.01372392,65712.0,65711.0,0.0024]
[1728962358863,0.929708,65712.0,65711.0,0.0024]
[1728962360363,2.429708,65712.0,65711.0,0.0024]
[1728962362365,0.809708,65712.0,65711.0,0.198509]
[1728962362571,0.809708,65712.0,65711.0,0.1224]
[1728962364374,0.809708,65712.0,65711.0,0.0024]
[1728962366675,0.088108,65712.0,65711.0,0.0024]
[1728962366874,0.53292772,65712.0,65711.0,0.0024]
[1728962367089,0.58753661,65712.0,65711.0,0.0024]
[1728962370875,0.70753661,65712.0,65711.0,0.0024]
[1728962372085,0.34673661,65712.0,65711.0,0.0024]
[1728962372385,0.70753661,65712.0,65711.0,0.0024]
[1728962373880,0.568908,65712.0,65711.0,0.0024]
[1728962375378,0.208108,65712.0,65711.0,0.0024]
[1728962375586,0.568908,65712.0,65711.0,0.0024]
[1728962375769,0.208108,65712.0,65711.0,0.0024]
[1728962375969,0.568908,65712.0,65711.0,0.0024]
[1728962377284,0.208108,65712.0,65711.0,0.0024]
[1728962377478,0.568908,65712.0,65711.0,0.0024]
[1728962381082,0.65292719,65712.0,65711.0,0.0024]
[1728962382874,0.29212719,65712.0,65711.0,0.0024]
[1728962383385,0.65292719,65712.0,65711.0,0.0024]
[1728962384688,0.29212719,65712.0,65711.0,0.0024]
[1728962385082,0.65292719,65712.0,65711.0,0.0024]
[1728962385676,0.65292826,65712.0,65711.0,0.0024]
[1728962385877,0.80454554,65712.0,65711.0,0.0024]
[1728962387182,0.65292826,65712.0,65711.0,0.0024]
[1728962388382,0.70753685,65712.0,65711.0,0.0024]
[1728962388787,2.20753685,65712.0,65711.0,0.0024]
[1728962389090,2.068908,65712.0,65711.0,0.0024]
[1728962389597,0.568908,65712.0,65711.0,0.0024]
[1728962390192,0.60619361,65712.0,65711.0,0.0024]
[1728962390584,0.568908,65712.0,65711.0,0.0024]
[1728962395894,0.60619416,65712.0,65711.0,0.0024]
[1728962400197,0.65293073,65712.0,65711.0,0.0024]
[1728962402289,0.78943831,65712.0,65711.0,0.0024]
[1728962402488,0.65293073,65712.0,65711.0,0.0024]
[1728962403895,0.568908,65712.0,65711.0,0.0024]
[1728962405590,0.208108,65712.0,65711.0,0.0024]
[1728962406098,0.929708,65712.0,65711.0,0.0024]
[1728962406898,0.208108,65712.0,65711.0,0.0024]
[1728962407102,0.929708,65712.0,65711.0,0.0024]
[1728962408404,0.809708,65712.0,65711.0,0.0024]
[1728962408600,0.929708,65712.0,65711.0,0.0024]
[1728962409506,2.429708,65712.0,65711.0,0.0024]
[1728962412518,2.429708,65712.0,65711.0,0.002]
[1728962412718,2.46699511,65712.0,65711.0,0.002]
[1728962413911,2.429708,65712.0,65711.0,0.002]
[1728962414117,2.4669945,65712.0,65711.0,0.002]
[1728962414316,2.429708,65712.0,65711.0,0.002]
[1728962414523,0.929708,65712.0,65711.0,0.002]
[1728962418519,0.809708,65712.0,65711.0,0.002]
[1728962418719,0.7336,65712.0,65711.0,0.108309]
[1728962418920,0.81761872,65712.0,65711.0,0.140809]
[1728962420326,0.87222653,65712.0,65711.0,0.140809]
[1728962420527,0.87222653,65712.0,65711.0,0.078109]
[1728962420737,0.07612,65702.0,65700.0,0.001]
[1728962421027,0.076121,65701.0,65700.0,0.001]
[1728962421328,1.71474464,65701.0,65700.0,0.001]
[1728962421833,0.21474464,65701.0,65700.0,0.001]
[1728962422923,0.21475273,65701.0,65700.0,0.001]
[1728962423732,0.22075273,65701.0,65700.0,0.002]
[1728962423925,0.22075273,65701.0,65700.0,0.003]
[1728962423926,0.22675273,65701.0,65700.0,0.003]
[1728962425429,0.58755273,65701.0,65700.0,0.003]
[1728962426033,0.448921,65701.0,65700.0,0.003]
[1728962437644,1.948921,65701.0,65700.0,0.003]
[1728962439443,0.448921,65701.0,65700.0,0.003]
[1728962441138,0.53294713,65701.0,65700.0,0.003]
[1728962441534,0.17214713,65701.0,65700.0,0.079122]
[1728962442339,0.09602551,65701.0,65700.0,0.079122]
[1728962443544,0.24766508,65701.0,65700.0,0.079122]
[1728962444240,0.09602551,65701.0,65700.0,0.079122]
[1728962444941,0.26282904,65701.0,65700.0,0.079122]
[1728962445251,0.09602551,65701.0,65700.0,0.079122]
[1728962445547,0.17880353,65701.0,65700.0,0.079122]
[1728962445749,0.26282904,65701.0,65700.0,0.079122]
[1728962446246,0.09602551,65701.0,65700.0,0.079122]
[1728962446548,0.04928779,65701.0,65700.0,0.079122]
[1728962447747,0.12540879,65701.0,65700.0,0.079122]
[1728962449147,0.088121,65701.0,65700.0,0.12480166]
[1728962449639,0.088121,65701.0,65700.0,0.079122]
[1728962449839,0.088121,65701.0,65700.0,0.12480573]
[1728962450234,0.088121,65701.0,65700.0,0.079122]
[1728962452345,0.088121,65701.0,65700.0,0.12482263]
[1728962452552,0.088121,65701.0,65700.0,0.079122]
[1728962453048,0.088121,65701.0,65700.0,0.12482263]
[1728962453452,0.088121,65701.0,65700.0,0.079122]
[1728962456041,0.17214677,65701.0,65700.0,0.079122]
[1728962460355,0.09602577,65701.0,65700.0,0.079122]
[1728962460657,0.21602577,65701.0,65700.0,0.079122]
[1728962462355,0.32102972,65701.0,65700.0,0.079122]
[1728962462575,0.44388858,65701.0,65700.0,0.003]
[1728962462753,0.29214677,65701.0,65700.0,0.003]
[1728962463150,1.94388858,65701.0,65700.0,0.003]
[1728962463347,1.79214677,65701.0,65700.0,0.003]
[1728962464051,1.708121,65701.0,65700.0,0.003]
[1728962464248,0.208121,65701.0,65700.0,0.003]
[1728962467268,0.208121,65701.0,65700.0,0.079122]
[1728962471369,0.29214815,65701.0,65700.0,0.079122]
[1728962474961,0.34676287,65701.0,65700.0,0.079122]
[1728962475156,0.5135664,65701.0,65700.0,0.079122]
[1728962475354,0.34676287,65701.0,65700.0,0.079122]
[1728962475764,0.34676287,65701.0,65700.0,0.003]
[1728962477265,0.44384238,65701.0,65700.0,0.003]
[1728962477467,0.29214815,65701.0,65700.0,0.003]
[1728962477676,0.4438418,65701.0,65700.0,0.003]
[1728962478364,0.29214815,65701.0,65700.0,0.003]
[1728962478863,0.44383489,65701.0,65700.0,0.003]
[1728962479058,0.29214815,65701.0,65700.0,0.003]
[1728962479264,0.208121,65701.0,65700.0,0.003]
[1728962479865,0.328121,65701.0,65700.0,0.003]
[1728962480474,0.208121,65701.0,65700.0,0.003]
[1728962481666,0.23549143,65701.0,65700.0,0.003]
[1728962488068,0.35549143,65701.0,65700.0,0.003]
[1728962488270,0.23549143,65701.0,65700.0,0.003]
[1728962488778,1.73549143,65701.0,65700.0,0.003]
[1728962494275,1.8741472,65701.0,65700.0,0.003]
[1728962495567,1.9941472,65701.0,65700.0,0.003]
[1728962495769,1.8741472,65701.0,65700.0,0.003]
[1728962496080,1.9941472,65701.0,65700.0,0.003]
[1728962496276,1.8741472,65701.0,65700.0,0.003]
[1728962496470,1.9941472,65701.0,65700.0,0.003]
[1728962499575,1.9941472,65701.0,65700.0,0.002]
[1728962499576,1.7541472,65701.0,65700.0,0.002]
[1728962499982,1.9941472,65701.0,65700.0,0.002]
[1728962500481,1.7541472,65701.0,65700.0,0.002]
[1728962500782,1.9941472,65701.0,65700.0,0.002]
[1728962501184,1.85549143,65701.0,65700.0,0.002]
[1728962502982,1.73549143,65701.0,65700.0,0.002]
[1728962503375,1.85549143,65701.0,65700.0,0.002]
[1728962504286,2.57709143,65701.0,65700.0,0.002]
[1728962504483,2.45709143,65701.0,65700.0,0.002]
[1728962507080,2.57709143,65701.0,65700.0,0.002]
[1728962508889,2.45709143,65701.0,65700.0,0.002]
[1728962509282,2.59574784,65701.0,65700.0,0.002]
[1728962509486,1.09574784,65701.0,65700.0,0.002]
[1728962511498,1.21574784,65701.0,65700.0,0.002]
[1728962513401,1.21574901,65701.0,65700.0,0.002]
[1728962514680,1.16112917,65701.0,65700.0,0.002]
[1728962516221,1.07709143,65701.0,65700.0,0.002]
[1728962517325,1.07709143,65701.0,65691.0,0.0035]
[1728962517326,0.076131,65692.0,65691.0,0.0035]
[1728962517622,0.076131,65692.0,65690.0,0.0312]
[1728962517623,0.076132,65691.0,65690.0,0.0312]
[1728962520122,0.087132,65691.0,65690.0,0.0322]
[1728962520332,0.098132,65691.0,65690.0,0.0332]
[1728962523227,0.12523265,65691.0,65690.0,0.0332]
[1728962524237,0.098132,65691.0,65690.0,0.0332]
[1728962528540,0.098132,65691.0,65690.0,0.229334]
[1728962528931,0.098132,65691.0,65690.0,0.27503513]
[1728962530706,0.098132,65691.0,65690.0,0.229334]
[1728962530911,0.098132,65691.0,65690.0,0.2750019]
[1728962531206,0.18216958,65691.0,65690.0,0.229334]
[1728962533210,0.31868889,65691.0,65690.0,0.229334]
[1728962533409,0.18216958,65691.0,65690.0,0.229334]
[1728962533614,0.3339282,65691.0,65690.0,0.229334]
[1728962533807,0.18216958,65691.0,65690.0,0.229334]
[1728962534113,0.3339282,65691.0,65690.0,0.229334]
[1728962535514,0.3339282,65691.0,65690.0,0.109334]
[1728962535811,0.18216958,65691.0,65690.0,0.109334]
[1728962537615,0.18216958,65691.0,65690.0,0.229334]
[1728962539211,0.098132,65691.0,65690.0,0.229334]
[1728962542522,0.098132,65691.0,65690.0,0.30546678]
[1728962542825,0.098132,65691.0,65690.0,0.109334]
[1728962546309,0.13542536,65691.0,65690.0,0.109334]
[1728962550017,0.05929336,65691.0,65690.0,0.109334]
[1728962550216,0.10603699,65691.0,65690.0,0.109334]
[1728962550413,0.10603558,65691.0,65690.0,0.109334]
[1728962553321,0.05929226,65691.0,65690.0,0.109334]
[1728962553622,0.05929226,65691.0,65690.0,0.229334]
[1728962553623,0.10603557,65691.0,65690.0,0.229334]
[1728962554212,0.05929226,65691.0,65690.0,0.229334]
[1728962554529,0.022,65691.0,65690.0,0.34538504]
[1728962558822,0.022,65691.0,65690.0,0.46538504]
[1728962559017,0.0106,65697.0,65696.0,0.076127]
[1728962559223,0.500423,65700.0,65698.0,0.076124]
[1728962559528,0.500423,65700.0,65699.0,0.0004]
[1728962559724,0.500423,65700.0,65699.0,0.1204]
[1728962560224,0.500423,65700.0,65699.0,0.196523]
[1728962561223,0.504423,65700.0,65699.0,0.25843819]
[1728962561425,0.58845389,65700.0,65699.0,0.197523]
[1728962562313,0.58845389,65700.0,65699.0,0.198523]
[1728962562519,0.75538783,65700.0,65699.0,0.198523]
[1728962562728,0.81000405,65700.0,65699.0,0.198523]
[1728962563125,0.64307011,65700.0,65699.0,0.198523]
[1728962565222,0.64306986,65700.0,65699.0,0.198523]
[1728962569425,0.504423,65700.0,65699.0,0.198523]
[1728962571829,0.504423,65700.0,65699.0,0.22653154]
[1728962572139,0.4283,65700.0,65699.0,0.22653154]
[1728962572936,0.004,65700.0,65699.0,0.39221806]
[1728962573232,0.004,65700.0,65699.0,0.22653154]
[1728962573650,0.004,65700.0,65699.0,0.25663154]
[1728962574046,0.004,65700.0,65699.0,0.83327154]
[1728962574332,0.004,65700.0,65699.0,1.43327154]
[1728962578139,0.004,65700.0,65699.0,1.49406413]
[1728962578538,0.004,65700.0,65699.0,1.49405456]
[1728962579339,0.0106,65705.0,65704.0,0.316117]
[1728962579539,0.3608,65709.0,65708.0,0.076113]
[1728962579735,0.3608,65709.0,65708.0,0.076513]
[1728962580641,0.3648,65709.0,65708.0,0.077513]
[1728962582251,0.3678,65709.0,65708.0,0.078513]
[1728962582942,0.3678,65709.0,65708.0,0.535073]
[1728962584646,0.45181239,65709.0,65708.0,0.535073]
[1728962585045,0.45181239,65709.0,65708.0,0.078513]
[1728962586351,0.45181239,65709.0,65708.0,0.10528294]
[1728962587646,0.45181239,65709.0,65708.0,0.22528294]
[1728962588144,0.58810106,65709.0,65708.0,0.22528294]
[1728962588373,0.076116,65705.0,65704.0,0.0004]
[1728962588665,0.24285418,65705.0,65704.0,0.0004]
[1728962588849,0.28013615,65705.0,65704.0,0.0004]
[1728962589364,0.33474948,65705.0,65704.0,0.0004]
[1728962589856,0.33474948,65705.0,65704.0,0.0014]
[1728962590046,0.25863348,65705.0,65700.0,0.076122]
[1728962590349,0.4808,65701.0,65700.0,0.076122]
[1728962590552,0.56482015,65701.0,65700.0,0.076122]
[1728962591154,0.7162601,65701.0,65700.0,0.076122]
[1728962591554,0.5128,65701.0,65700.0,0.076122]
[1728962592150,0.076122,65700.0,65699.0,0.0004]
[1728962593560,0.079122,65700.0,65699.0,0.0014]
[1728962594357,0.083122,65700.0,65699.0,0.0024]
[1728962598657,0.1204138,65700.0,65699.0,0.0024]
[1728962600353,0.16715807,65700.0,65699.0,0.0024]
[1728962600955,0.30342024,65700.0,65699.0,0.0024]
[1728962601153,0.30341919,65700.0,65699.0,0.0024]
[1728962601368,0.16715807,65700.0,65699.0,0.0024]
[1728962601569,0.1204138,65700.0,65699.0,0.0024]
[1728962602263,0.1204138,65700.0,65690.0,0.0035]
[1728962602264,0.076132,65691.0,65690.0,0.0035]
[1728962602460,0.076139,65686.0,65682.0,0.076193]
[1728962602660,0.0332,65685.0,65683.0,0.076142]
[1728962602859,0.0657,65685.0,65683.0,0.076142]
[1728962603660,0.0657,65685.0,65682.0,0.12005]
[1728962603875,0.0657,65685.0,65684.0,0.076141]
[1728962604166,0.0677,65685.0,65684.0,0.076141]
[1728962604469,0.0707,65685.0,65684.0,0.076141]
[1728962605054,0.0677,65685.0,65684.0,0.196141]
[1728962605362,0.0717,65685.0,65684.0,0.196141]
[1728962605566,0.0697,65685.0,65684.0,0.196141]
[1728962605764,0.0717,65685.0,65684.0,0.196141]
[1728962606267,0.0737,65685.0,65684.0,0.196141]
[1728962610771,0.1937,65685.0,65684.0,0.076141]
[1728962611075,0.0412,65685.0,65684.0,0.196141]
[1728962611470,0.008,65685.0,65684.0,0.24172743]
[1728962611777,0.0106,65689.0,65688.0,0.076136]
[1728962612079,0.3608,65691.0,65689.0,0.076135]
[1728962612277,0.3608,65691.0,65690.0,0.0004]
[1728962612573,0.3608,65691.0,65690.0,0.076534]
[1728962614079,0.3638,65691.0,65690.0,0.077534]
[1728962614471,0.3648,65691.0,65690.0,0.078534]
[1728962615573,0.3648,65691.0,65690.0,0.1240565]
[1728962615774,0.3648,65691.0,65690.0,0.078534]
[1728962616482,0.3648,65691.0,65690.0,0.1240565]
[1728962617473,0.3648,65691.0,65690.0,0.078534]
[1728962617987,0.3648,65691.0,65690.0,0.15185251]
[1728962618182,0.3648,65691.0,65690.0,0.10622966]
[1728962619503,0.3648,65691.0,65690.0,0.16701156]
[1728962620179,0.3648,65691.0,65690.0,0.10622966]
[1728962620793,0.3648,65691.0,65690.0,0.16708057]
[1728962621084,0.3648,65691.0,65690.0,0.10622966]
[1728962621281,0.3648,65691.0,65690.0,0.16708027]
[1728962621776,0.60024034,65691.0,65690.0,0.10622966]
[1728962623279,0.4488379,65691.0,65690.0,0.10622966]
[1728962623486,0.50346051,65691.0,65690.0,0.10622966]
[1728962623687,0.57959251,65691.0,65690.0,0.10622966]
[1728962626082,0.5249699,65691.0,65690.0,0.078534]
[1728962626275,0.57959325,65691.0,65690.0,0.078534]
[1728962626477,0.49555535,65691.0,65690.0,0.078534]
[1728962626685,0.52497422,65691.0,65690.0,0.078534]
[1728962627084,0.57959819,65691.0,65690.0,0.0024]
[1728962627279,0.77705016,65691.0,65690.0,0.0024]
[1728962627474,0.55557422,65691.0,65690.0,0.0024]
[1728962627785,0.61019815,65691.0,65690.0,0.0024]